[Event "15th Arad Open 2022"]
[Site "Arad"]
[Date "2022.08.09"]
[Round "3.10"]
[White "Kazarian, Anna-Maja"]
[Black "Kumar, Ambar-David"]
[Result "1-0"]
[ECO "C01"]
[WhiteElo "2139"]
[BlackElo "1492"]
[Annotator "RC"]
[PlyCount "97"]
[EventDate "2022.08.08"]
[EventType "swiss"]
[EventCountry "ROU"]
[SourceTitle "playchess.com"]
[Source "ChessBase"]
[SourceQuality "1"]
[TimeControl "5400+30"]

1. e4 {[%emt 0:00:02]} e5 {[%emt 0:00:35]} 2. Nf3 {[%emt 0:00:07]} Nf6 {[%emt 0:00:52]} 3. Nxe5 {[%emt 0:00:36]} d6 {[%emt 0:00:17]} 4. Nf3 {[%emt 0:00:04]} Nxe4 {[%emt 0:00:10]} 5. d3 {[%emt 0:00:06]} Nf6 {[%emt 0:00:23]} 6. d4 {[%emt 0:00:03]} d5 {[%emt 0:00:45]} 7. c4 {[%emt 0:00:12]} c6 {[%emt 0:00:29]} 8. Nc3 {[%emt 0:00:10]} g6 {[%emt 0:00:59]} 9. Bg5 {[%emt 0:01:17]} Bg7 {[%emt 0:00:51]} 10. cxd5 {[%emt 0:00:44]} cxd5 {[%emt 0:02:49]} 11. Bb5+ {[%emt 0:00:44]} Nc6 {[%emt 0:01:46]} 12. Ne5 {[%emt 0:06:05]} O-O {[%emt 0:01:46]} 13. Nxc6 {[%emt 0:03:25]} bxc6 {[%emt 0:01:38]} 14. Bxc6 {[%emt 0:00:10]} Qe7+ {[%emt 0:16:40]} 15. Kf1 {[%emt 0:08:23]} Rb8 {[%emt 0:08:53]} 16. Nxd5 {[%emt 0:00:40]} Qd6 {[%emt 0:03:58]} 17. Bf4 {[%emt 0:01:29]} Qd8 {[%emt 0:09:23]} 18. Bc7 {[%emt 0:01:33]} Nxd5 {[%emt 0:03:43]} 19. Bxd8 {[%emt 0:00:09]} Rxd8 {[%emt 0:00:25]} 20. Qa4 {[%emt 0:02:41]} Nf4 {[%emt 0:11:39]} 21. b3 {[%emt 0:20:51]} Bf5 {[%emt 0:13:50]} 22. Rd1 {[%emt 0:06:33]} Bd3+ {[%emt 0:02:22]} 23. Rxd3 {[%emt 0:00:04]} Nxd3 {[%emt 0:00:07]} 24. d5 {[%emt 0:00:08]} Rb4 {[%emt 0:05:02]} 25. Qa5 {[%emt 0:07:18]} Rd6 {[%emt 0:02:14]} 26. g3 {[%emt 0:01:57]} Bd4 {[%emt 0:07:42]} 27. Kg2 {[%emt 0:11:52]} Rf6 {[%emt 0:02:15]} 28. f3 {[%emt 0:05:00]} Bb6 {[%emt 0:00:35]} 29. Qa6 {[%emt 0:00:10]} Rd4 {[%emt 0:00:31]} 30. h4 {[%emt 0:07:14]} Ne5 {[%emt 0:00:45]} 31. Qe2 {[%emt 0:01:37]} Nxf3 {[%emt 0:02:02]} 32. Rf1 {[%emt 0:01:09]} Nxh4+ {[%emt 0:00:31]} 33. gxh4 {[%emt 0:00:15]} Rxf1 {[%emt 0:00:23]} 34. Kxf1 {[%emt 0:02:14]} Rxh4 {[%emt 0:00:31]} 35. d6 {[%emt 0:01:22]} Rf4+ {[%emt 0:00:21]} 36. Kg2 {[%emt 0:00:30]} Rd4 {[%emt 0:00:27]} 37. d7 {[%emt 0:04:04]} Rd6 {[%emt 0:00:45]} 38. Qe8+ {[%emt 0:00:46]} Kg7 {[%emt 0:00:07]} 39. Qe5+ {[%emt 0:00:19]} Rf6 {[%emt 0:00:10]} 40. Bd5 {[%emt 0:00:00]} h5 {[%emt 0:00:00]} 41. b4 {[%emt 0:00:00]} g5 {[%emt 0:00:00]} 42. Be4 {[%emt 0:00:00]} Bd8 {[%emt 0:00:00]} 43. a4 {[%emt 0:00:00]} Kh6 {[%emt 0:00:00]} 44. Qe8 {[%emt 0:00:00]} g4 {[%emt 0:00:00]} 45. Qxd8 {[%emt 0:00:00]} Rf4 {[%emt 0:00:00]} 46. Qh8+ {[%emt 0:00:00]} Kg5 {[%emt 0:00:00]} 47. Qe5+ {[%emt 0:00:00]} f5 {[%emt 0:00:00]} 48. Qg7+ {[%emt 0:00:00]} Kh4 {[%emt 0:00:00]} 49. d8=B# {[%emt 0:00:00]} 1-0

[Event "15th Arad Open 2022"]
[Site "Arad"]
[Date "2022.08.09"]
[Round "3.11"]
[White "Tudor, Henry Edward"]
[Black "Tampea, Radu"]
[Result "1/2-1/2"]
[ECO "D31"]
[WhiteElo "1984"]
[BlackElo "2093"]
[Annotator "NA RC"]
[PlyCount "85"]
[EventDate "2022.08.08"]
[EventType "swiss"]
[EventCountry "ROU"]
[SourceTitle "playchess.com"]
[Source "ChessBase"]
[SourceQuality "1"]
[TimeControl "5400+30"]

1. d4 {[%emt 0:00:12]} d5 {[%emt 0:00:44]} 2. c4 {[%emt 0:00:28]} e6 {[%emt 0:01:28]} 3. Nc3 {[%emt 0:00:21]} a6 {[%emt 0:00:51]} 4. cxd5 {[%emt 0:00:59]} exd5 {[%emt 0:00:07]} 5. Qb3 {[%emt 0:00:50]} Nf6 {[%emt 0:00:14]} 6. Bg5 {[%emt 0:00:37]} c5 {[%emt 0:00:07]} 7. Bxf6 {[%emt 0:08:34]} gxf6 {[%emt 0:00:11]} 8. Qxd5 {[%emt 0:05:36]} Qb6 {[%emt 0:01:33]} 9. O-O-O {[%emt 0:01:29]} Be6 {[%emt 0:00:14]} 10. Qe4 {[%emt 0:06:52]} cxd4 {[%emt 0:02:07]} 11. Qxd4 {[%emt 0:03:16]} Qa5 {[%emt 0:00:26]} 12. Qa4+ {[%emt 0:01:00]} Qxa4 {[%emt 0:01:10]} 13. Nxa4 {[%emt 0:00:30]} Nd7 {[%emt 0:06:58]} 14. Nc3 {[%emt 0:28:07]} (14. Kb1 $1 $14) 14... Rc8 {[%emt 0:31:26]} 15. Kb1 {[%emt 0:01:47]} Bb4 {[%emt 0:14:18]} 16. Rc1 {[%emt 0:04:11]} (16. e3 $11) 16... Bxc3 {[%emt 0:05:07]} 17. Rxc3 {[%emt 0:00:34]} Rxc3 {[%emt 0:00:33]} 18. bxc3 {[%emt 0:02:14]} Nc5 {[%emt 0:00:11]} 19. f4 {[%emt 0:07:00]} Ne4 {[%emt 0:03:40]} 20. Nf3 {[%emt 0:00:02]} Nxc3+ {[%emt 0:00:08]} 21. Kb2 {[%emt 0:00:01]} Nd1+ {[%emt 0:05:42]} 22. Kc2 {[%emt 0:02:41]} Nf2 {[%emt 0:02:12]} 23. Rg1 {[%emt 0:00:17]} Bxa2 {[%emt 0:00:07]} 24. e3 {[%emt 0:01:21]} O-O {[%emt 0:02:02]} 25. Bd3 $17 {[%emt 0:00:36]} Rc8+ {[%emt 0:06:46]} 26. Kd2 {[%emt 0:00:26]} Nxd3 {[%emt 0:02:31]} 27. Kxd3 {[%emt 0:00:16]} Bc4+ {[%emt 0:02:56]} 28. Kd2 {[%emt 0:01:51]} Bd5 {[%emt 0:03:00]} 29. Nd4 {[%emt 0:00:49]} Be4 {[%emt 0:00:10]} 30. Ra1 {[%emt 0:02:07]} Kf8 {[%emt 0:01:37]} 31. g4 {[%emt 0:01:57]} Ke7 {[%emt 0:00:24]} 32. Ra4 {[%emt 0:02:09]} Rg8 {[%emt 0:00:35]} 33. h3 {[%emt 0:00:58]} Kd7 {[%emt 0:00:28]} 34. Ra5 {[%emt 0:01:30]} Kd6 {[%emt 0:03:02]} 35. Ne2 {[%emt 0:01:23]} Rc8 {[%emt 0:03:25]} 36. Nc3 {[%emt 0:03:21]} Bg2 {[%emt 0:00:48]} 37. Rh5 {[%emt 0:00:15]} b5 {[%emt 0:00:05]} 38. Ne2 {[%emt 0:02:55]} Be4 {[%emt 0:00:47]} 39. Nd4 {[%emt 0:00:59]} Rc5 {[%emt 0:00:49]} 40. f5 {[%emt 0:00:00]} b4 {[%emt 0:00:00]} 41. Rxh7 {[%emt 0:00:00]} Bd5 {[%emt 0:00:00]} 42. Rh6 {[%emt 0:00:00]} Ke7 {[%emt 0:00:00]} 43. g5 {[%emt 0:00:00]} 1/2-1/2

[Event "15th Arad Open 2022"]
[Site "Arad"]
[Date "2022.08.09"]
[Round "3.12"]
[White "Oltean, Cristian-Daniel"]
[Black "Balaban-Voia, Alexandru"]
[Result "0-1"]
[ECO "B09"]
[WhiteElo "2158"]
[BlackElo "1869"]
[Annotator "TA"]
[PlyCount "115"]
[EventDate "2022.08.08"]
[EventType "swiss"]
[EventCountry "ROU"]
[SourceTitle "playchess.com"]
[Source "ChessBase"]
[SourceQuality "1"]
[TimeControl "5400+30"]

{[%evp 11,115,30,32,19,28,28,30,27,37,37,33,22,62,38,40,37,36,26,36,25,64,42,38,42,45,48,54,41,88,54,66,79,98,86,101,68,73,69,60,27,19,-2,21,-10,-17,-13,-17,-85,-70,-79,-75,-208,-218,-206,-208,-212,-191,-203,-215,-188,-168,-159,-93,-131,-114,-163,-171,-286,-29,0,0,-400,-338,-613,-604,-587,-590,-474,-465,-2146,-29967,-2664,-29948,-12841,-7643,-4133,-4366,-1673,-1579,-29972,-29973,-29976,-29977,-29980,-29982,-29981,-29982,-29983,-29984,-29986,-29979,-29978,-29979,-29976,-29976,-29989]} 1. e4 {[%emt 0:00:01]} g6 {[%emt 0:00:06]} 2. d4 {[%emt 0:00:05]} Bg7 {[%emt 0:00:03]} 3. Nc3 {[%emt 0:00:21]} d6 {[%emt 0:00:06]} 4. f4 {[%emt 0:00:22]} Nf6 {[%emt 0:00:13]} 5. Nf3 {[%emt 0:00:27]} c5 {[%emt 0:00:29]} 6. dxc5 {[%emt 0:00:40]} Qa5 {[%emt 0:00:25] ...Nxe4 is the strong threat.} 7. Qd4 {[%emt 0:00:41] B09: Pirc Defence: Austrian Attack.} (7. cxd6 Nxe4 8. dxe7 (8. Bb5+ Nd7 $15) 8... Nc6 $11) 7... O-O {[%emt 0:07:46][%cal Of6e4]} 8. Bd2 {[%emt 0:24:20]} Nc6 {[%emt 0:07:15]} 9. Qc4 {[%emt 0:08:48] White has an edge.} Be6 {[%emt 0:21:35]} 10. Qb5 {[%emt 0:06:21]} Qxb5 {[%emt 0:25:30]} 11. Bxb5 {[%emt 0:00:33]} Nb4 {[%emt 0:02:10] [#]} 12. Ba4 $146 {[%emt 0:08:01]} ({Predecessor:} 12. Nd4 dxc5 13. Nxe6 fxe6 14. O-O-O Ng4 15. Rde1 e5 16. h3 Nh6 17. a3 Nc6 18. Nd5 {1-0 (42) Longson,A (2317)-Thorarinsson,P (2273) Antalya 2017}) 12... dxc5 {[%emt 0:00:40][%cal Ob7b5]} 13. a3 {[%emt 0:01:19]} Na6 {[%emt 0:00:36]} 14. Bb5 {[%emt 0:05:55]} Nc7 {[%emt 0:00:26]} 15. Be2 {[%emt 0:00:53]} h6 {[%emt 0:08:08]} 16. h3 {[%emt 0:03:18]} Nh5 {[%emt 0:04:57]} 17. Kf2 {[%emt 0:05:19] Against Ng3} Bxc3 {[%emt 0:05:55]} 18. bxc3 {[%emt 0:00:21][%cal Of4f5]} Nf6 {[%emt 0:00:47]} 19. Ke3 {[%emt 0:01:26]} b5 {[%emt 0:00:49]} (19... Nfe8 $14) 20. Ne5 {[%emt 0:04:58]} Rfd8 {[%emt 0:05:06][%cal Of6e4]} 21. Rhd1 {[%emt 0:01:56]} Rd6 {[%emt 0:02:56]} 22. g4 {[%emt 0:03:51]} Rad8 {[%emt 0:01:24][%cal Of6e4]} 23. Be1 {[%emt 0:04:08]} Nd7 $1 {[%emt 0:01:39]} 24. Rxd6 {[%emt 0:01:28]} exd6 {[%emt 0:00:03]} 25. Nc6 {[%emt 0:00:33]} Re8 {[%emt 0:00:23]} 26. Kd2 {[%emt 0:11:24]} a6 {[%emt 0:02:59]} 27. f5 {[%emt 0:01:19]} (27. Bh4 $5 {[%cal Rh4d8]}) 27... Bc4 {[%emt 0:00:09]} 28. Bxc4 {[%emt 0:00:25]} bxc4 {[%emt 0:00:04]} 29. Bg3 {[%emt 0:00:36]} (29. fxg6 $11 fxg6 30. Rb1 (30. Bg3 $2 Nf6 $17)) 29... Nf6 $17 {[%emt 0:00:31]} 30. e5 {[%emt 0:03:26]} Ne4+ {[%emt 0:00:22]} 31. Ke3 {[%emt 0:00:04]} (31. Kc1 $17 dxe5 32. Bxe5) 31... Nxg3 $19 {[%emt 0:01:25] Pair of Knights!} 32. Kf3 {[%emt 0:00:03] [#]} Nxf5 {[%emt 0:00:46]} 33. gxf5 {[%emt 0:00:11]} dxe5 {[%emt 0:00:13][%mdl 4096] Endgame Strongly threatening ...e4+. KRN-KRN} 34. Re1 {[%emt 0:00:59]} f6 $1 {[%emt 0:00:54]} (34... gxf5 35. Rxe5 Rxe5 36. Nxe5 $17) 35. Rg1 {[%emt 0:00:14]} g5 {[%emt 0:00:06] And now ...e4+ would win.} 36. Rd1 {[%emt 0:00:14]} Nb5 {[%emt 0:00:33]} (36... e4+ $142 $1 37. Ke3 Nb5) 37. Rd7 {[%emt 0:00:32]} e4+ {[%emt 0:00:28]} (37... Nxa3 $6 38. Ne7+ Kh8 39. Ng6+ Kg8 40. Ne7+ Kh8 41. Ng6+ Kg8 42. Ne7+ $11) 38. Ke3 {[%emt 0:00:23]} (38. Kg4 $17 {is a better defense.} Kf8 39. Rh7) 38... Kf8 $1 {[%emt 0:00:59]} ({Stronger than} 38... Nxa3 39. Ne7+ Kh8 40. Ng6+ Kg8 41. Ne7+ Kh8 42. Ng6+ Kg8 43. Ne7+ $11) ({Inferior is} 38... Nxc3 39. Kd2 Nb1+ 40. Kc1 $17) 39. Nd8 {[%emt 0:00:55] [#]} (39. a4 $142 Nxc3 40. Rd6) 39... Re7 $2 {[%emt 0:00:28]} ({Not} 39... Nxc3 40. Ne6+ Kg8 41. Rg7+ Kh8 42. Rg6 $17) (39... Re5 $1 $19 {Threatens to win with ...Ke8.} 40. Ne6+ Ke8) 40. Ne6+ $11 {[%emt 0:00:00]} Kf7 $1 {[%emt 0:00:00]} 41. Nxc5 {[%emt 0:00:00][%mdl 8192] Black keeps a firm grip on the game.} (41. Rd8 $11 Rxe6 42. fxe6+ Kxe6 43. Kxe4) 41... Nxa3 {[%emt 0:00:00]} 42. Rxe7+ $2 {[%emt 0:00:00]} (42. Rd5 Nxc2+ 43. Ke2) 42... Kxe7 $19 {[%emt 0:00:00]} 43. Kxe4 $11 {[%emt 0:00:00] KN-KN} Kd6 {[%emt 0:00:00]} 44. Nxa6 {[%emt 0:00:36]} Nxc2 {[%emt 0:00:00]} 45. Nb8 {[%emt 0:01:20]} (45. Kf3 $142) 45... h5 $19 {[%emt 0:00:00]} 46. Na6 {[%emt 0:00:23]} Kc6 {[%emt 0:00:00]} 47. Nb8+ {[%emt 0:00:10]} Kc7 {[%emt 0:00:11]} 48. Na6+ {[%emt 0:00:04]} Kd6 {[%emt 0:00:09]} 49. Nb8 {[%emt 0:00:08] [#]} Nb4 $1 {[%emt 0:04:37][%mdl 512] ( -> ...Na2)} 50. cxb4 {[%emt 0:01:16] [#] KN-KP} (50. Kf3 Na2) 50... c3 $1 {[%emt 0:00:10] Black mates.} 51. Kd3 {[%emt 0:00:24]} g4 {[%emt 0:00:08]} 52. hxg4 {[%emt 0:01:05]} hxg4 {[%emt 0:00:20][%cal Bh5g4,Bg4g3,Bg3g2][%mdl 32] KN-K3P} 53. Na6 {[%emt 0:03:41]} g3 {[%emt 0:00:08]} 54. b5 {[%emt 0:00:42]} g2 {[%emt 0:00:07]} 55. b6 {[%emt 0:00:01]} Kc6 {[%emt 0:00:50]} 56. b7 {[%emt 0:00:31]} Kxb7 {[%emt 0:00:08]} 57. Nc5+ {[%emt 0:00:01]} Kc8 {[%emt 0:00:09]} 58. Kd4 {[%emt 0:02:18] Weighted Error Value: White=0.54/Black=0.17 (very precise)} 0-1

[Event "15th Arad Open 2022"]
[Site "Arad"]
[Date "2022.08.09"]
[Round "3.13"]
[White "Pauwels, Xander"]
[Black "Donici-Maier, David"]
[Result "1-0"]
[ECO "E62"]
[WhiteElo "2040"]
[BlackElo "1786"]
[Annotator "NA RC"]
[PlyCount "65"]
[EventDate "2022.08.08"]
[EventType "swiss"]
[EventCountry "ROU"]
[SourceTitle "playchess.com"]
[Source "ChessBase"]
[SourceQuality "1"]
[TimeControl "5400+30"]

1. d4 {[%emt 0:01:58]} Nf6 {[%emt 0:00:12]} 2. c4 {[%emt 0:00:24]} g6 {[%emt 0:00:24]} 3. g3 {[%emt 0:00:11]} Bg7 {[%emt 0:00:05]} 4. Bg2 {[%emt 0:00:07]} O-O {[%emt 0:00:11]} 5. Nc3 {[%emt 0:00:06]} d6 {[%emt 0:00:48]} 6. Nf3 {[%emt 0:00:36]} c6 {[%emt 0:00:31]} 7. e4 {[%emt 0:01:32]} Qa5 {[%emt 0:05:06]} 8. O-O {[%emt 0:01:43]} Qh5 {[%emt 0:01:55]} 9. Re1 {[%emt 0:12:03]} Na6 {[%emt 0:05:44]} 10. Rb1 {[%emt 0:13:26]} Bh3 {[%emt 0:05:33]} 11. e5 {[%emt 0:07:39]} Bxg2 {[%emt 0:04:43]} 12. Kxg2 {[%emt 0:00:09]} Nd7 {[%emt 0:03:49]} 13. h3 {[%emt 0:05:16]} f5 {[%emt 0:08:10]} 14. exd6 {[%emt 0:00:24]} exd6 {[%emt 0:01:42]} 15. Bf4 {[%emt 0:02:32]} Rf6 {[%emt 0:04:36]} 16. Qb3 {[%emt 0:05:39]} Raf8 {[%emt 0:13:48]} 17. c5+ {[%emt 0:07:39]} d5 {[%emt 0:01:50]} 18. Qxb7 {[%emt 0:00:25]} Ndxc5 {[%emt 0:06:28]} 19. dxc5 {[%emt 0:04:52]} Nxc5 {[%emt 0:00:09]} 20. Qxa7 {[%emt 0:00:33]} Nd3 {[%emt 0:04:27]} 21. Re7 {[%emt 0:03:25]} Nxf4+ {[%emt 0:00:18]} 22. gxf4 {[%emt 0:00:07]} Bh8 {[%emt 0:01:20]} 23. Ng5 {[%emt 0:04:30]} h6 {[%emt 0:01:49]} 24. Nh7 {[%emt 0:01:54]} g5 {[%emt 0:00:39]} 25. Nxf8 {[%emt 0:07:51]} Rxf8 {[%emt 0:00:07]} 26. Qe3 {[%emt 0:00:19]} Bf6 $18 {[%emt 0:01:11]} 27. Qe6+ {[%emt 0:04:17]} Kh8 {[%emt 0:00:07]} 28. Re1 {[%emt 0:03:51]} gxf4 {[%emt 0:06:48]} 29. Re8 {[%emt 0:02:20]} f3+ {[%emt 0:03:28]} 30. Kh2 {[%emt 0:01:30]} Bg7 {[%emt 0:00:14]} 31. Qe7 {[%emt 0:01:00]} Rxe8 {[%emt 0:00:57]} 32. Qxe8+ {[%emt 0:00:03]} Qxe8 {[%emt 0:00:08]} 33. Rxe8+ {[%emt 0:00:03]} 1-0

[Event "15th Arad Open 2022"]
[Site "Arad"]
[Date "2022.08.09"]
[Round "3.14"]
[White "Chima, Radu-Niculin"]
[Black "Moerman, Thomas"]
[Result "0-1"]
[ECO "C05"]
[WhiteElo "2005"]
[BlackElo "2026"]
[Annotator "NA RC"]
[PlyCount "58"]
[EventDate "2022.08.08"]
[EventType "swiss"]
[EventCountry "ROU"]
[SourceTitle "playchess.com"]
[Source "ChessBase"]
[SourceQuality "1"]
[TimeControl "5400+30"]

1. e4 {[%emt 0:00:04]} e6 {[%emt 0:01:33]} 2. d4 {[%emt 0:00:13]} d5 {[%emt 0:00:50]} 3. Nd2 {[%emt 0:00:42]} c5 {[%emt 0:00:09]} 4. Ngf3 {[%emt 0:01:24]} cxd4 {[%emt 0:00:08]} 5. Nxd4 {[%emt 0:02:14]} Nf6 {[%emt 0:00:10]} 6. e5 {[%emt 0:04:32]} Nfd7 {[%emt 0:00:08]} 7. f4 {[%emt 0:00:43]} Nc6 {[%emt 0:02:31]} 8. N2f3 {[%emt 0:02:05]} Be7 {[%emt 0:04:35]} 9. Be3 {[%emt 0:01:57]} O-O {[%emt 0:03:49]} 10. Qd2 {[%emt 0:02:24]} Nc5 {[%emt 0:01:34]} 11. c3 {[%emt 0:00:47]} Bd7 {[%emt 0:00:56]} 12. O-O-O {[%emt 0:01:24]} Rc8 {[%emt 0:01:23]} 13. Kb1 {[%emt 0:03:31]} Ne4 {[%emt 0:02:50]} 14. Qe1 {[%emt 0:02:25]} Na5 {[%emt 0:05:53]} 15. Bd3 {[%emt 0:02:35]} Ba4 {[%emt 0:07:37]} 16. Rc1 {[%emt 0:04:38]} Nc5 {[%emt 0:03:09]} 17. Bc2 {[%emt 0:05:27]} Bxc2+ {[%emt 0:01:22]} 18. Rxc2 {[%emt 0:00:07]} Nc4 {[%emt 0:02:20]} 19. f5 {[%emt 0:05:19]} Qb6 {[%emt 0:03:34]} 20. Ka1 {[%emt 0:06:29]} f6 {[%emt 0:17:42]} 21. exf6 {[%emt 0:06:51]} Bxf6 {[%emt 0:01:11]} 22. fxe6 {[%emt 0:03:19]} Nxe6 {[%emt 0:03:26]} 23. Nxe6 {[%emt 0:07:43]} Qxe6 {[%emt 0:04:29]} 24. Bxa7 {[%emt 0:02:03]} Qf5 {[%emt 0:02:49]} 25. Re2 {[%emt 0:03:50]} b6 {[%emt 0:00:56]} 26. Re6 {[%emt 0:05:41]} Ra8 {[%emt 0:04:30]} 27. Bxb6 $2 {[%emt 0:03:20]} (27. Rf1 $19 Rxa7 28. Re8) 27... Rxa2+ {[%emt 0:03:17]} 28. Kxa2 {[%emt 0:00:35]} Qc2 {[%emt 0:00:04]} 29. Qf2 {[%emt 0:12:14]} Ra8+ {[%emt 0:00:05]} 0-1

[Event "15th Arad Open 2022"]
[Site "Arad"]
[Date "2022.08.09"]
[Round "3.15"]
[White "Paraschiv, Paul-Alexandru"]
[Black "Kiraly, Lilla Virag"]
[Result "1-0"]
[ECO "D00"]
[WhiteElo "2181"]
[BlackElo "1787"]
[Annotator "TA"]
[PlyCount "89"]
[EventDate "2022.08.08"]
[EventType "swiss"]
[EventCountry "ROU"]
[SourceTitle "playchess.com"]
[Source "ChessBase"]
[SourceQuality "1"]
[TimeControl "5400+30"]

{[%evp 9,89,31,33,31,33,27,66,53,59,44,36,-114,34,-5,-32,-93,14,14,38,25,76,56,59,22,37,21,58,53,63,68,162,114,189,195,202,173,266,264,240,199,312,302,303,293,304,300,292,236,270,286,378,377,366,338,484,0,472,366,479,477,475,473,499,394,394,387,650,620,1105,900,2009,1801,1670,1698,29992,29993,29993,29994,29994,29995,29997,29998]} 1. d4 {[%emt 0:00:17]} Nf6 {[%emt 0:00:14]} 2. Bg5 {[%emt 0:00:47]} d5 {[%emt 0:00:28]} 3. Bxf6 {[%emt 0:00:06]} gxf6 {[%emt 0:02:39]} 4. e3 {[%emt 0:00:07]} c6 {[%emt 0:01:23]} 5. c4 {[%emt 0:00:05]} Be6 {[%emt 0:10:16]} 6. cxd5 {[%emt 0:01:27] D00: 1 d4 d5: Unusual lines.} Bxd5 {[%emt 0:01:03]} 7. Nc3 {[%emt 0:00:22] [#]} Qb6 $146 {[%emt 0:12:20]} ({Predecessor:} 7... f5 8. Qc2 Be4 9. Nxe4 fxe4 10. O-O-O Qa5 11. Kb1 Nd7 12. Qxe4 e6 13. Nf3 Bd6 {1-0 (48) Graef,S (2025)-Krug,S (1823) Bayern 1996}) 8. Qc2 {[%emt 0:01:08] White is slightly better.} Na6 {[%emt 0:09:36]} 9. O-O-O {[%emt 0:08:47]} Nb4 {[%emt 0:04:07]} 10. Qa4 {[%emt 0:00:17] [#]} (10. Nxd5 $14 {stays ahead.} cxd5 11. Qb3) 10... O-O-O {[%emt 0:09:16]} (10... Nxa2+ $1 $17 {[%mdl 512]} 11. Nxa2 Bb3) 11. Kb1 {[%emt 0:01:57]} Be6 {[%emt 0:05:52][%cal Ob4a2]} 12. Nge2 {[%emt 0:02:21] [#]} ({White should play} 12. Rc1 $1 $15) 12... Nd5 {[%emt 0:02:19]} (12... Nxa2 $1 $17 {Threatens to win with ...Bb3.} 13. d5 (13. Nxa2 $2 Bb3 $19) 13... Nxc3+ 14. Nxc3 cxd5) 13. Nxd5 {[%emt 0:00:13]} Bxd5 {[%emt 0:00:29]} 14. Nc3 {[%emt 0:00:08]} Bg7 {[%emt 0:10:25]} (14... Be6 $11 {keeps the balance.}) 15. Bd3 {[%emt 0:02:18]} Be6 {[%emt 0:09:51]} 16. Rc1 {[%emt 0:00:48]} Kb8 {[%emt 0:02:14]} 17. Qa3 {[%emt 0:01:16]} Rhe8 {[%emt 0:08:07]} 18. Na4 {[%emt 0:00:36]} Qc7 {[%emt 0:01:37]} 19. Nc5 {[%emt 0:00:14]} Bc8 {[%emt 0:03:25] White now steadily converts the win.} (19... Ka8 $14) 20. Qb3 $18 {[%emt 0:00:39]} ({Don't do} 20. Bxh7 $6 f5 $11) 20... Qb6 {[%emt 0:02:17] Inhibits Na6+.} (20... Qd6 $16) 21. Qxf7 {[%emt 0:00:24]} Bh8 {[%emt 0:00:32]} 22. Rc3 {[%emt 0:00:18]} ({Don't take} 22. Bxh7 $6 e5 $14) 22... Ka8 {[%emt 0:00:50]} (22... Qc7 {keeps fighting.} 23. Qb3 (23. Bxh7 e5 $16) 23... Ka8) 23. Qxh7 {[%emt 0:00:34]} Qc7 {[%emt 0:01:07]} 24. Rhc1 {[%emt 0:00:35] And now Rb3 would win.} Qd6 {[%emt 0:00:47]} (24... Rg8 $142 25. g3 Rg7) 25. Rb3 {[%emt 0:00:49]} Rg8 {[%emt 0:00:59]} 26. Bf5 {[%emt 0:01:10]} b6 {[%emt 0:00:40]} 27. Bxc8 {[%emt 0:02:52]} Rxc8 {[%emt 0:00:25]} 28. Ne4 {[%emt 0:00:19][%cal Bc5e4,Be4g3,Bg3f5,Bf5e3][%mdl 32]} Qe6 {[%emt 0:00:39]} 29. Ng3 {[%emt 0:00:11]} Rg7 {[%emt 0:00:28]} 30. Qd3 {[%emt 0:00:07][%cal Ob3b6] Rxb6! is the strong threat.} Qd7 {[%emt 0:00:21]} 31. Qa6 {[%emt 0:00:23]} Qb7 {[%emt 0:00:31] [#]} (31... Rb8 {was necessary.} 32. Qa4 b5) 32. Qd3 $2 {[%emt 0:00:08]} (32. Rxb6 $3 $18 {[%csl Gb6][%cal Ra6b7][%mdl 512]} Qxa6 33. Rxa6) 32... e5 $2 {[%emt 0:00:33][%mdl 8192]} (32... Qd7 $1 $11 33. d5 c5) 33. Rbc3 {[%emt 0:00:09][%cal Bb3c3,Bc3c6,Bc6c8][%mdl 32]} Rd7 {[%emt 0:00:34]} 34. Nf5 {[%emt 0:00:29]} exd4 {[%emt 0:00:27]} 35. exd4 {[%emt 0:00:04]} Rd5 {[%emt 0:00:23]} 36. Ne3 {[%emt 0:00:07]} Rdd8 {[%emt 0:00:19]} 37. Qe4 {[%emt 0:00:14][%cal Rc3c6]} Re8 $2 {[%emt 0:00:40] [#]} (37... f5 38. Nxf5 c5 39. Qxb7+ Kxb7) 38. Rxc6 $1 {[%emt 0:00:47]} Rcd8 {[%emt 0:00:40]} (38... Rxe4 39. Rxc8+) 39. Qf3 {[%emt 0:00:24] Strongly threatening Nc4.} Qh7+ {[%emt 0:00:26]} 40. Ka1 {[%emt 0:00:00][%csl Gc1][%cal Rc6c8]} Qe4 {[%emt 0:00:00] [#]} 41. Rc8+ $3 {[%emt 0:00:00][%mdl 512]} Kb7 {[%emt 0:00:00]} (41... Rxc8 42. Rxc8+) 42. R1c7+ {[%emt 0:00:00] White mates.} Ka6 {[%emt 0:00:00]} 43. Qe2+ {[%emt 0:00:00]} b5 {[%emt 0:00:00]} 44. Rc6+ {[%emt 0:00:00]} Ka5 {[%emt 0:00:00]} 45. b4+ {[%emt 0:00:00] Weighted Error Value: White=0.41/Black=0.77} 1-0